[Event "Sunway Sitges Chess Festival"]
[Date "2024.12.21"]
[White "Goh, Jinghan Cameron"]
[Black "Nalbandyan, Vahan"]
[WhiteElo "2021"]
[BlackElo "2197"]
[Round "4.41"]
[Result "0-1"]
[TimeControl "40/5400+30:1800+30"]

1. d4 {[%clk 1:30:57]} 1... Nf6 {[%clk 1:29:40]} 2. c4 {[%clk 1:31:24]} 2... g6
{[%clk 1:29:44]} 3. g3 {[%clk 1:31:51]} 3... Bg7 {[%clk 1:29:50]} 4. Bg2 {[%clk
1:32:17]} 4... d6 {[%clk 1:30:00]} 5. Nf3 {[%clk 1:32:22]} 5... O-O {[%clk
1:29:53]} 6. Nc3 {[%clk 1:32:49]} 6... Nbd7 {[%clk 1:30:18]} 7. O-O {[%clk
1:33:14]} 7... e5 {[%clk 1:30:45]} 8. e4 {[%clk 1:33:41]} 8... exd4 {[%clk
1:31:08]} 9. Nxd4 {[%clk 1:34:07]} 9... Re8 {[%clk 1:31:30]} 10. h3 {[%clk
1:34:21]} 10... Nc5 {[%clk 1:31:46]} 11. Re1 {[%clk 1:34:44]} 11... a5 {[%clk
1:32:05]} 12. Ndb5 {[%clk 1:34:50]} 12... Bd7 {[%clk 1:32:00]} 13. Bf4 {[%clk
1:35:15]} 13... Bxb5 {[%clk 1:32:04]} 14. cxb5 {[%clk 1:35:41]} 14... Nfd7
{[%clk 1:31:12]} 15. Qc2 {[%clk 1:35:53]} 15... h5 {[%clk 1:23:35]} 16. Be3
{[%clk 1:36:18]} 16... h4 {[%clk 1:13:07]} 17. g4 {[%clk 1:36:14]} 17... a4
{[%clk 1:09:33]} 18. Rad1 {[%clk 1:27:54]} 18... g5 {[%clk 1:00:18]} 19. Rf1
{[%clk 1:18:29]} 19... Ne6 {[%clk 0:48:26]} 20. f4 {[%clk 1:08:32]} 20... gxf4
{[%clk 0:43:52]} 21. Bxf4 {[%clk 1:07:12]} 21... Nxf4 {[%clk 0:42:33]} 22. Rxf4
{[%clk 1:06:26]} 22... a3 {[%clk 0:34:26]} 23. e5 {[%clk 0:38:15]} 23... Nxe5
{[%clk 0:32:44]} 24. Bxb7 {[%clk 0:30:51]} 24... axb2 {[%clk 0:32:47]} 25. Bd5
{[%clk 0:29:48]} 25... c6 {[%clk 0:28:03]} 26. bxc6 {[%clk 0:28:06]} 26... Qb6+
{[%clk 0:28:14]} 27. Qf2 {[%clk 0:16:12]} 27... Qxf2+ {[%clk 0:27:04]} 28. Rxf2
{[%clk 0:16:13]} 28... Rec8 {[%clk 0:26:27]} 29. Nb5 {[%clk 0:09:51]} 29... Rxc6
{[%clk 0:26:36]} 30. Rff1 {[%clk 0:06:49]} 30... Ra5 {[%clk 0:23:59]} 31. Bxc6
{[%clk 0:05:01]} 31... Nxc6 {[%clk 0:24:21]} 32. Nxd6 {[%clk 0:04:56]} 32...
Rxa2 {[%clk 0:23:59]} 33. Nc4 {[%clk 0:03:49]} 33... Nd4 {[%clk 0:23:14]} 34.
Rf2 {[%clk 0:01:55]} 34... Ne6 {[%clk 0:19:42]} 35. Nxb2 {[%clk 0:01:02]} 35...
Rxb2 {[%clk 0:16:51]} 36. Rxb2 {[%clk 0:00:59]} 36... Bxb2 {[%clk 0:17:15]} 37.
Rb1 {[%clk 0:00:36]} 37... Be5 {[%clk 0:17:33]} 38. Rb3 {[%clk 0:00:36]} 38...
Kg7 {[%clk 0:17:40]} 39. Rf3 {[%clk 0:00:46]} 39... Kg6 {[%clk 0:16:28]} 40. Rf5
{[%clk 0:30:51]} 40... Bg3 {[%clk 0:46:30]} 41. Kg2 {[%clk 0:29:58]} 41... Nf4+
{[%clk 0:41:59]} 42. Kf3 {[%clk 0:29:49]} 42... Nxh3 {[%clk 0:42:06]} 43. Rh5
{[%clk 0:30:09]} 43... Ng5+ {[%clk 0:37:11]} 44. Kg2 {[%clk 0:30:02]} 44... f6
{[%clk 0:37:06]} 45. Rh8 {[%clk 0:30:02]} 45... Kg7 {[%clk 0:37:03]} 46. Rh5
{[%clk 0:30:16]} 46... Nf7 {[%clk 0:37:07]} 47. Kh3 {[%clk 0:29:53]} 47... Kg6
{[%clk 0:36:50]} 48. Rf5 {[%clk 0:29:50]} 48... Ne5 {[%clk 0:34:30]} 49. Rf1
{[%clk 0:27:54]} 49... Nd3 {[%clk 0:33:52]} 50. Kg2 {[%clk 0:28:09]} 50... Nf2
{[%clk 0:32:26]} 51. Kf3 {[%clk 0:27:57]} 51... Kg5 {[%clk 0:32:41]} 52. Ra1
{[%clk 0:27:38]} 52... Nxg4 {[%clk 0:33:00]} 53. Ra8 {[%clk 0:27:38]} 53... Ne5+
{[%clk 0:33:07]} 54. Kg2 {[%clk 0:27:47]} 54... f5 {[%clk 0:32:47]} 55. Rg8+
{[%clk 0:27:55]} 55... Kf4 {[%clk 0:33:10]} 56. Rf8 {[%clk 0:28:09]} 56... Ng4
{[%clk 0:32:48]} 0-1

[Variant "Standard"]
[Site "Europe Echecs"]

[Event "Sunway Sitges Chess Festival"]
[Date "2024.12.21"]
[White "Skutta, Bernd, Dr."]
[Black "Sayce, Hannah"]
[WhiteElo "1948"]
[BlackElo "1821"]
[Round "4.42"]
[Result "1/2-1/2"]
[TimeControl "40/5400+30:1800+30"]

1. d4 {[%clk 1:28:18]} 1... Nf6 {[%clk 1:30:52]} 2. Nf3 {[%clk 1:28:24]} 2... d5
{[%clk 1:31:06]} 3. g3 {[%clk 1:28:34]} 3... e6 {[%clk 1:30:10]} 4. Bg2 {[%clk
1:28:53]} 4... c5 {[%clk 1:28:57]} 5. O-O {[%clk 1:28:59]} 5... Nc6 {[%clk
1:27:05]} 6. c4 {[%clk 1:28:53]} 6... dxc4 {[%clk 1:24:25]} 7. Qa4 {[%clk
1:27:33]} 7... Nd7 {[%clk 1:20:10]} 8. dxc5 {[%clk 1:22:42]} 8... Bxc5 {[%clk
1:18:36]} 9. Qxc4 {[%clk 1:22:05]} 9... O-O {[%clk 1:17:35]} 10. Nc3 {[%clk
1:21:04]} 10... Be7 {[%clk 1:12:06]} 11. Rd1 {[%clk 1:16:10]} 11... Qa5 {[%clk
1:09:05]} 12. Bf4 {[%clk 1:05:08]} 12... e5 {[%clk 0:58:03]} 13. Bg5 {[%clk
0:49:02]} 13... Nb6 {[%clk 0:52:40]} 14. Qb5 {[%clk 0:46:40]} 14... f6 {[%clk
0:47:18]} 15. Qb3+ {[%clk 0:44:14]} 15... Kh8 {[%clk 0:47:29]} 16. Be3 {[%clk
0:44:14]} 16... Bg4 {[%clk 0:42:25]} 17. Nh4 {[%clk 0:36:13]} 17... Qb4 {[%clk
0:37:16]} 18. Qxb4 {[%clk 0:29:21]} 18... Bxb4 {[%clk 0:37:30]} 19. h3 {[%clk
0:26:27]} 19... Bxc3 {[%clk 0:30:10]} 20. hxg4 {[%clk 0:26:24]} 20... Bxb2
{[%clk 0:29:56]} 21. Rab1 {[%clk 0:26:45]} 21... Bd4 {[%clk 0:21:25]} 22. Bxc6
{[%clk 0:20:25]} 22... Bxe3 {[%clk 0:21:35]} 23. Bxb7 {[%clk 0:20:32]} 23...
Rab8 {[%clk 0:21:33]} 24. Ba6 {[%clk 0:18:42]} 24... Bg5 {[%clk 0:18:51]} 25. e3
{[%clk 0:17:50]} 25... Rbd8 {[%clk 0:11:19]} 26. Nf5 {[%clk 0:10:30]} 26... g6
{[%clk 0:15:13]} 27. Nd6 {[%clk 0:09:55]} 27... Rd7 {[%clk 0:13:54]} 28. Bb5
{[%clk 0:08:21]} 28... Re7 {[%clk 0:12:17]} 29. a4 {[%clk 0:07:53]} 29... Nc8
{[%clk 0:08:03]} 30. Rbc1 {[%clk 0:07:53]} 30... Nxd6 {[%clk 0:07:46]} 31. Rxd6
{[%clk 0:08:20]} 31... f5 {[%clk 0:07:26]} 32. gxf5 {[%clk 0:08:21]} 32... Rxf5
{[%clk 0:07:22]} 33. Bd7 {[%clk 0:05:04]} 33... Rf8 {[%clk 0:06:35]} 34. Be6
{[%clk 0:04:36]} 34... Kg7 {[%clk 0:05:43]} 35. Kg2 {[%clk 0:04:38]} 35... Rb7
{[%clk 0:04:48]} 36. Rc2 {[%clk 0:04:39]} 36... Re7 {[%clk 0:04:03]} 1/2-1/2

[Variant "Standard"]
[Site "Europe Echecs"]

[Event "Sunway Sitges Chess Festival"]
[Date "2024.12.21"]
[White "Anwesh, Upadhyaya"]
[Black "Gorshtein, Ido"]
[WhiteElo "2379"]
[BlackElo "2422"]
[Round "5.1"]
[Result "1/2-1/2"]
[TimeControl "40/5400+30:1800+30"]

1. d4 {[%clk 1:28:34]} 1... Nf6 {[%clk 1:30:52]} 2. c4 {[%clk 1:28:42]} 2... e6
{[%clk 1:31:14]} 3. Nf3 {[%clk 1:28:58]} 3... d5 {[%clk 1:31:22]} 4. Nc3 {[%clk
1:29:03]} 4... c6 {[%clk 1:31:43]} 5. Bg5 {[%clk 1:28:08]} 5... h6 {[%clk
1:32:05]} 6. Bh4 {[%clk 1:28:02]} 6... dxc4 {[%clk 1:30:55]} 7. e4 {[%clk
1:28:06]} 7... g5 {[%clk 1:31:18]} 8. Bg3 {[%clk 1:27:38]} 8... b5 {[%clk
1:31:39]} 9. Be2 {[%clk 1:26:40]} 9... Bb7 {[%clk 1:31:49]} 10. e5 {[%clk
1:25:33]} 10... Nd5 {[%clk 1:26:56]} 11. Nd2 {[%clk 1:24:56]} 11... Nd7 {[%clk
1:24:30]} 12. O-O {[%clk 1:17:35]} 12... Qb6 {[%clk 1:21:59]} 13. Nde4 {[%clk
1:17:46]} 13... O-O-O {[%clk 1:08:37]} 14. a4 {[%clk 1:15:19]} 14... a6 {[%clk
1:07:39]} 15. Qd2 {[%clk 1:14:20]} 15... c5 {[%clk 0:53:26]} 16. axb5 {[%clk
1:13:59]} 16... axb5 {[%clk 0:53:34]} 17. Nxd5 {[%clk 1:14:22]} 17... Bxd5
{[%clk 0:53:25]} 18. Nc3 {[%clk 1:14:31]} 18... Bb7 {[%clk 0:52:06]} 19. d5
{[%clk 1:13:44]} 19... Bg7 {[%clk 0:46:01]} 20. b3 {[%clk 1:01:51]} 20... Bxe5
{[%clk 0:39:53]} 21. bxc4 {[%clk 0:59:20]} 21... b4 {[%clk 0:38:58]} 22. Nb5
{[%clk 0:45:27]} 22... exd5 {[%clk 0:33:55]} 23. Bg4 {[%clk 0:36:30]} 23... Rhe8
{[%clk 0:30:21]} 24. Ra7 {[%clk 0:33:22]} 24... h5 {[%clk 0:17:01]} 25. Bf5
{[%clk 0:20:45]} 25... h4 {[%clk 0:14:25]} 26. Bxe5 {[%clk 0:17:41]} 26... Rxe5
{[%clk 0:14:48]} 27. Qxg5 {[%clk 0:12:56]} 27... Rxf5 {[%clk 0:05:03]} 28. Qxf5
{[%clk 0:13:14]} 28... dxc4 {[%clk 0:05:23]} 29. Rfa1 {[%clk 0:08:24]} 29...
Qxb5 {[%clk 0:05:29]} 30. Ra8+ {[%clk 0:08:41]} 30... Bxa8 {[%clk 0:05:51]} 31.
Rxa8+ {[%clk 0:09:06]} 31... Qb8 {[%clk 0:05:21]} 32. Rxb8+ {[%clk 0:07:39]}
32... Kxb8 {[%clk 0:05:47]} 33. Qf4+ {[%clk 0:07:03]} 33... Kb7 {[%clk 0:05:19]}
34. Qxc4 {[%clk 0:03:52]} 34... Nb6 {[%clk 0:05:19]} 35. Qxf7+ {[%clk 0:03:46]}
35... Rd7 {[%clk 0:05:01]} 36. Qf3+ {[%clk 0:03:44]} 36... Ka6 {[%clk 0:05:26]}
37. Qe2+ {[%clk 0:03:04]} 37... c4 {[%clk 0:05:07]} 38. f4 {[%clk 0:03:27]}
38... b3 {[%clk 0:05:03]} 39. f5 {[%clk 0:03:33]} 39... Rf7 {[%clk 0:03:21]} 40.
Qe5 {[%clk 0:31:28]} 40... Rd7 {[%clk 0:32:59]} 41. Qe2 {[%clk 0:22:21]} 41...
Rd6 {[%clk 0:12:50]} 42. g4 {[%clk 0:16:03]} 42... hxg3 {[%clk 0:12:35]} 43.
hxg3 {[%clk 0:16:30]} 43... Rc6 {[%clk 0:10:08]} 1/2-1/2

[Variant "Standard"]
[Site "Europe Echecs"]

[Event "Sunway Sitges Chess Festival"]
[Date "2024.12.21"]
[White "Song, Edward"]
[Black "Tin, Jingyao"]
[WhiteElo "2363"]
[BlackElo "2480"]
[Round "5.2"]
[Result "1/2-1/2"]
[TimeControl "40/5400+30:1800+30"]

1. e4 {[%clk 1:30:18]} 1... c6 {[%clk 1:30:34]} 2. Nf3 {[%clk 1:30:29]} 2... d5
{[%clk 1:30:56]} 3. Nc3 {[%clk 1:30:44]} 3... Bg4 {[%clk 1:31:11]} 4. h3 {[%clk
1:31:09]} 4... Bxf3 {[%clk 1:31:26]} 5. Qxf3 {[%clk 1:31:32]} 5... e6 {[%clk
1:31:45]} 6. Be2 {[%clk 1:30:34]} 6... Bc5 {[%clk 1:31:19]} 7. O-O {[%clk
1:30:56]} 7... Ne7 {[%clk 1:31:01]} 8. Na4 {[%clk 1:25:06]} 8... Bd6 {[%clk
1:28:24]} 9. d4 {[%clk 1:24:37]} 9... dxe4 {[%clk 1:27:33]} 10. Qxe4 {[%clk
1:25:00]} 10... Qa5 {[%clk 1:20:58]} 11. Nc3 {[%clk 1:17:46]} 11... Nd5 {[%clk
1:17:27]} 12. Nxd5 {[%clk 1:11:52]} 12... cxd5 {[%clk 1:13:51]} 13. Qg4 {[%clk
1:12:16]} 13... g6 {[%clk 1:13:51]} 14. c4 {[%clk 0:48:17]} 14... O-O {[%clk
0:59:46]} 15. cxd5 {[%clk 0:47:58]} 15... Qxd5 {[%clk 0:57:15]} 16. Bf3 {[%clk
0:42:18]} 16... Qb5 {[%clk 0:57:19]} 17. Bh6 {[%clk 0:31:27]} 17... Re8 {[%clk
0:54:33]} 18. a4 {[%clk 0:24:38]} 18... Qb4 {[%clk 0:47:53]} 19. d5 {[%clk
0:17:25]} 19... Qxg4 {[%clk 0:45:26]} 20. hxg4 {[%clk 0:17:50]} 20... e5 {[%clk
0:45:23]} 21. Rac1 {[%clk 0:16:19]} 21... Nd7 {[%clk 0:39:52]} 22. Be3 {[%clk
0:16:16]} 22... f6 {[%clk 0:36:59]} 23. Rc2 {[%clk 0:14:56]} 23... Rec8 {[%clk
0:31:23]} 24. Rfc1 {[%clk 0:15:03]} 24... Rxc2 {[%clk 0:31:29]} 25. Rxc2 {[%clk
0:15:32]} 25... Nb6 {[%clk 0:29:16]} 26. a5 {[%clk 0:13:03]} 26... Rc8 {[%clk
0:18:40]} 27. Be4 {[%clk 0:11:00]} 27... Rxc2 {[%clk 0:17:45]} 28. Bxc2 {[%clk
0:11:29]} 28... Nc4 {[%clk 0:16:34]} 29. Bxa7 {[%clk 0:10:25]} 29... Nxb2 {[%clk
0:15:40]} 30. Bb3 {[%clk 0:08:03]} 30... Kf8 {[%clk 0:12:29]} 31. Kf1 {[%clk
0:08:06]} 31... Nd3 {[%clk 0:11:41]} 32. Bc4 {[%clk 0:08:19]} 32... Bc5 {[%clk
0:08:35]} 33. Bxd3 {[%clk 0:05:16]} 1/2-1/2

[Variant "Standard"]
[Site "Europe Echecs"]

[Event "Sunway Sitges Chess Festival"]
[Date "2024.12.21"]
[White "Maurizzi, Marc`Andria"]
[Black "Dudognon, Thibault"]
[WhiteElo "2477"]
[BlackElo "2411"]
[Round "5.3"]
[Result "1-0"]
[TimeControl "40/5400+30:1800+30"]

1. e4 {[%clk 1:30:19]} 1... c5 {[%clk 1:30:50]} 2. Nf3 {[%clk 1:29:57]} 2... d6
{[%clk 1:31:14]} 3. Bb5+ {[%clk 1:28:05]} 3... Nd7 {[%clk 1:31:32]} 4. O-O
{[%clk 1:27:22]} 4... a6 {[%clk 1:31:58]} 5. Bxd7+ {[%clk 1:27:42]} 5... Bxd7
{[%clk 1:32:09]} 6. c3 {[%clk 1:28:03]} 6... Nf6 {[%clk 1:31:47]} 7. Re1 {[%clk
1:28:06]} 7... e6 {[%clk 1:31:48]} 8. d4 {[%clk 1:27:27]} 8... cxd4 {[%clk
1:32:12]} 9. cxd4 {[%clk 1:27:51]} 9... d5 {[%clk 1:32:33]} 10. e5 {[%clk
1:28:18]} 10... Ne4 {[%clk 1:32:52]} 11. Nfd2 {[%clk 1:28:46]} 11... f5 {[%clk
1:32:16]} 12. exf6 {[%clk 1:27:43]} 12... Nxf6 {[%clk 1:30:34]} 13. Nf3 {[%clk
1:28:10]} 13... Bd6 {[%clk 1:28:27]} 14. Ne5 {[%clk 1:28:21]} 14... O-O {[%clk
1:28:37]} 15. Bg5 {[%clk 1:28:47]} 15... Qe8 {[%clk 1:21:31]} 16. Nc3 {[%clk
1:27:19]} 16... Bxe5 {[%clk 1:17:56]} 17. Rxe5 {[%clk 1:21:53]} 17... Qf7 {[%clk
1:16:43]} 18. f3 {[%clk 1:16:06]} 18... h6 {[%clk 1:11:35]} 19. Bh4 {[%clk
1:15:15]} 19... Rac8 {[%clk 1:05:27]} 20. Qd2 {[%clk 1:12:04]} 20... Rc4 {[%clk
1:02:25]} 21. a4 {[%clk 0:35:00]} 21... b6 {[%clk 0:57:57]} 22. a5 {[%clk
0:34:01]} 22... b5 {[%clk 0:54:46]} 23. Na2 {[%clk 0:31:31]} 23... Rfc8 {[%clk
0:54:28]} 24. Nb4 {[%clk 0:31:25]} 24... Qg6 {[%clk 0:54:35]} 25. Bf2 {[%clk
0:21:53]} 25... Nh5 {[%clk 0:41:26]} 26. Nxa6 {[%clk 0:18:38]} 26... Rc2 {[%clk
0:40:50]} 27. Qe3 {[%clk 0:18:45]} 27... Rxf2 {[%clk 0:21:12]} 28. Qxf2 {[%clk
0:18:52]} 28... Rc2 {[%clk 0:20:21]} 29. Re2 {[%clk 0:17:45]} 29... Nf4 {[%clk
0:20:47]} 30. Rxc2 {[%clk 0:18:07]} 30... Nh3+ {[%clk 0:21:14]} 31. Kh1 {[%clk
0:17:19]} 31... Nxf2+ {[%clk 0:21:41]} 32. Rxf2 {[%clk 0:17:47]} 32... Qd3
{[%clk 0:22:06]} 33. Nc5 {[%clk 0:17:22]} 33... Qxd4 {[%clk 0:21:20]} 34. Rc2
{[%clk 0:17:46]} 34... Bc6 {[%clk 0:08:33]} 35. Nb3 {[%clk 0:17:53]} 35... Qa7
{[%clk 0:05:51]} 36. Rxc6 {[%clk 0:18:14]} 36... e5 {[%clk 0:06:13]} 37. a6
{[%clk 0:18:39]} 37... e4 {[%clk 0:06:24]} 38. fxe4 {[%clk 0:18:47]} 38... dxe4
{[%clk 0:06:51]} 39. Rc7 {[%clk 0:19:09]} 1-0

[Variant "Standard"]
[Site "Europe Echecs"]

[Event "Sunway Sitges Chess Festival"]
[Date "2024.12.21"]
[White "Li, Di"]
[Black "Xu, Minghui"]
[WhiteElo "2440"]
[BlackElo "2405"]
[Round "5.4"]
[Result "1/2-1/2"]
[TimeControl "40/5400+30:1800+30"]

1. e4 {[%clk 1:30:55]} 1... e5 {[%clk 1:30:34]} 2. Nf3 {[%clk 1:31:16]} 2... Nc6
{[%clk 1:30:50]} 3. Bb5 {[%clk 1:31:23]} 3... a6 {[%clk 1:30:43]} 4. Ba4 {[%clk
1:31:34]} 4... Nf6 {[%clk 1:30:58]} 5. O-O {[%clk 1:31:25]} 5... Nxe4 {[%clk
1:29:47]} 6. d4 {[%clk 1:30:38]} 6... b5 {[%clk 1:30:07]} 7. Bb3 {[%clk
1:30:55]} 7... d5 {[%clk 1:30:25]} 8. dxe5 {[%clk 1:30:45]} 8... Be6 {[%clk
1:30:48]} 9. Qe2 {[%clk 1:28:47]} 9... Be7 {[%clk 1:24:26]} 10. Rd1 {[%clk
1:28:33]} 10... O-O {[%clk 1:25:57]} 11. c4 {[%clk 1:26:52]} 11... bxc4 {[%clk
1:26:00]} 12. Bxc4 {[%clk 1:27:16]} 12... Bc5 {[%clk 1:26:05]} 13. Be3 {[%clk
1:26:52]} 13... Bxe3 {[%clk 1:24:57]} 14. Qxe3 {[%clk 1:27:17]} 14... Qb8 {[%clk
1:25:21]} 15. Bb3 {[%clk 1:27:36]} 15... Na5 {[%clk 1:25:28]} 16. Nd4 {[%clk
1:20:20]} 16... c5 {[%clk 1:24:23]} 17. Nxe6 {[%clk 1:20:41]} 17... fxe6 {[%clk
1:24:47]} 18. f3 {[%clk 1:21:08]} 18... c4 {[%clk 1:24:10]} 19. fxe4 {[%clk
1:20:16]} 19... cxb3 {[%clk 1:24:23]} 20. exd5 {[%clk 1:19:33]} 20... bxa2
{[%clk 1:23:08]} 21. Rxa2 {[%clk 1:19:54]} 21... Nc4 {[%clk 1:23:17]} 22. Qd4
{[%clk 1:19:44]} 22... Qb3 {[%clk 1:14:32]} 23. Nc3 {[%clk 1:19:59]} 23... Rac8
{[%clk 1:14:05]} 24. Rb1 {[%clk 1:19:12]} 24... Ne3 {[%clk 1:09:11]} 25. Qxe3
{[%clk 1:19:36]} 25... Rxc3 {[%clk 1:09:30]} 26. Qxc3 {[%clk 1:20:03]} 26...
Qxa2 {[%clk 1:09:52]} 27. Rd1 {[%clk 1:20:30]} 27... exd5 {[%clk 1:10:01]} 28.
Qd4 {[%clk 1:20:56]} 28... Qc4 {[%clk 1:09:36]} 29. Qxd5+ {[%clk 1:21:21]} 29...
Qxd5 {[%clk 1:09:59]} 30. Rxd5 {[%clk 1:21:49]} 30... Re8 {[%clk 1:08:26]} 31.
Kf2 {[%clk 1:22:07]} 31... Rb8 {[%clk 1:06:48]} 32. Kf3 {[%clk 1:22:06]} 32...
Rb3+ {[%clk 1:05:24]} 33. Kf4 {[%clk 1:19:11]} 33... Rxb2 {[%clk 1:05:39]} 34.
Rd8+ {[%clk 1:08:37]} 34... Kf7 {[%clk 1:05:52]} 35. Rd7+ {[%clk 1:09:02]} 35...
Kg6 {[%clk 0:58:56]} 36. Rd6+ {[%clk 1:09:26]} 36... Kf7 {[%clk 0:59:22]} 37.
Rd7+ {[%clk 1:09:33]} 37... Kg6 {[%clk 0:59:43]} 38. Rd6+ {[%clk 1:10:02]} 38...
Kf7 {[%clk 0:59:34]} 39. Rd7+ {[%clk 1:10:29]} 39... Kg6 {[%clk 1:00:26]} 40.
Rd6+ 1/2-1/2

[Variant "Standard"]
[Site "Europe Echecs"]

[Event "Sunway Sitges Chess Festival"]
[Date "2024.12.21"]
[White "Siddharth, Jagadeesh"]
[Black "Diaz Rosas, Julio Cesar"]
[WhiteElo "2510"]
[BlackElo "2401"]
[Round "5.5"]
[Result "1/2-1/2"]
[TimeControl "40/5400+30:1800+30"]

1. e4 {[%clk 1:25:23]} 1... c5 {[%clk 1:29:35]} 2. Nf3 {[%clk 1:25:46]} 2... Nc6
{[%clk 1:29:55]} 3. d4 {[%clk 1:26:11]} 3... cxd4 {[%clk 1:30:18]} 4. Nxd4
{[%clk 1:26:34]} 4... Nf6 {[%clk 1:30:39]} 5. Nc3 {[%clk 1:27:00]} 5... e5
{[%clk 1:31:03]} 6. Ndb5 {[%clk 1:27:24]} 6... d6 {[%clk 1:31:27]} 7. Nd5 {[%clk
1:27:47]} 7... Nxd5 {[%clk 1:31:49]} 8. exd5 {[%clk 1:28:13]} 8... Ne7 {[%clk
1:26:05]} 9. a4 {[%clk 1:28:36]} 9... a6 {[%clk 1:26:04]} 10. Nc3 {[%clk
1:29:00]} 10... Ng6 {[%clk 1:24:24]} 11. g3 {[%clk 1:26:48]} 11... Be7 {[%clk
1:23:22]} 12. h4 {[%clk 1:27:11]} 12... O-O {[%clk 1:19:42]} 13. h5 {[%clk
1:27:36]} 13... Nh8 {[%clk 1:20:08]} 14. h6 {[%clk 1:28:01]} 14... g6 {[%clk
1:20:33]} 15. Be3 {[%clk 1:28:24]} 15... Bg5 {[%clk 1:17:45]} 16. Bxg5 {[%clk
1:02:53]} 16... Qxg5 {[%clk 1:18:09]} 17. Ne4 {[%clk 1:03:17]} 17... Qe7 {[%clk
1:16:51]} 18. Qd2 {[%clk 0:48:12]} 18... Bf5 {[%clk 1:09:29]} 19. f3 {[%clk
0:47:26]} 19... f6 {[%clk 1:02:09]} 20. a5 {[%clk 0:45:06]} 20... Nf7 {[%clk
0:59:32]} 21. O-O-O {[%clk 0:45:27]} 21... Rac8 {[%clk 0:56:01]} 22. Bd3 {[%clk
0:45:21]} 22... Bd7 {[%clk 0:37:26]} 23. g4 {[%clk 0:38:08]} 23... Ng5 {[%clk
0:34:50]} 24. Nxg5 {[%clk 0:28:40]} 24... fxg5 {[%clk 0:35:16]} 25. Qb4 {[%clk
0:28:25]} 25... Bb5 {[%clk 0:24:23]} 26. Bxb5 {[%clk 0:13:26]} 26... Rf4 {[%clk
0:24:10]} 27. Qb3 {[%clk 0:13:24]} 27... axb5 {[%clk 0:24:00]} 28. Qxb5 {[%clk
0:13:31]} 28... Rc5 {[%clk 0:22:38]} 29. Qb6 {[%clk 0:11:58]} 29... Ra4 {[%clk
0:22:01]} 30. c3 {[%clk 0:09:47]} 30... Raxa5 {[%clk 0:19:49]} 31. Rhe1 {[%clk
0:06:42]} 31... Qd7 {[%clk 0:11:34]} 32. Re4 {[%clk 0:06:28]} 32... Rab5 {[%clk
0:09:38]} 33. Qa7 {[%clk 0:06:38]} 33... Ra5 {[%clk 0:10:00]} 34. Qb6 {[%clk
0:07:03]} 34... Rab5 {[%clk 0:02:16]} 35. Qa7 {[%clk 0:07:31]} 35... Ra5 {[%clk
0:02:40]} 1/2-1/2

[Variant "Standard"]
[Site "Europe Echecs"]

[Event "Sunway Sitges Chess Festival"]
[Date "2024.12.21"]
[White "Vetokhin, Savva"]
[Black "Hess, Max"]
[WhiteElo "2502"]
[BlackElo "2385"]
[Round "5.6"]
[Result "1/2-1/2"]
[TimeControl "40/5400+30:1800+30"]

1. d4 {[%clk 1:31:00]} 1... Nf6 {[%clk 1:28:52]} 2. c4 {[%clk 1:31:22]} 2... e6
{[%clk 1:29:19]} 3. Nc3 {[%clk 1:31:47]} 3... d5 {[%clk 1:29:37]} 4. cxd5 {[%clk
1:32:10]} 4... exd5 {[%clk 1:30:02]} 5. Bg5 {[%clk 1:32:34]} 5... c6 {[%clk
1:30:12]} 6. e3 {[%clk 1:32:53]} 6... h6 {[%clk 1:30:27]} 7. Bh4 {[%clk
1:33:00]} 7... Be7 {[%clk 1:30:45]} 8. Bd3 {[%clk 1:33:22]} 8... O-O {[%clk
1:31:03]} 9. Bg3 {[%clk 1:30:15]} 9... Re8 {[%clk 1:27:32]} 10. Nf3 {[%clk
1:28:40]} 10... Bg4 {[%clk 1:20:24]} 11. O-O {[%clk 1:21:55]} 11... Bd6 {[%clk
1:14:15]} 12. Qb3 {[%clk 1:17:39]} 12... Bxg3 {[%clk 1:01:21]} 13. hxg3 {[%clk
1:16:36]} 13... Qb6 {[%clk 1:00:25]} 14. Qc2 {[%clk 1:07:21]} 14... Nbd7 {[%clk
0:49:36]} 15. Rab1 {[%clk 1:05:22]} 15... a5 {[%clk 0:46:11]} 16. a3 {[%clk
1:04:31]} 16... Qd8 {[%clk 0:45:58]} 17. Rfe1 {[%clk 1:03:19]} 17... Re7 {[%clk
0:39:43]} 18. Nd2 {[%clk 1:01:23]} 18... Be6 {[%clk 0:37:24]} 19. b4 {[%clk
1:00:06]} 19... axb4 {[%clk 0:37:49]} 20. axb4 {[%clk 1:00:00]} 20... Nb6 {[%clk
0:33:33]} 21. b5 {[%clk 0:57:25]} 21... Nc4 {[%clk 0:32:10]} 22. Bxc4 {[%clk
0:54:21]} 22... dxc4 {[%clk 0:32:34]} 23. bxc6 {[%clk 0:54:09]} 23... bxc6
{[%clk 0:32:58]} 24. Na4 {[%clk 0:51:41]} 24... Bf5 {[%clk 0:19:40]} 25. Qxf5
{[%clk 0:50:45]} 25... Rxa4 {[%clk 0:20:07]} 26. Qc2 {[%clk 0:50:49]} 26... Rea7
{[%clk 0:17:32]} 27. Nxc4 {[%clk 0:50:25]} 27... Ra2 {[%clk 0:16:35]} 28. Rb2
{[%clk 0:49:32]} 28... Ra1 {[%clk 0:16:59]} 29. Reb1 {[%clk 0:49:09]} 29... Nd7
{[%clk 0:15:01]} 30. Kh2 {[%clk 0:43:41]} 30... g6 {[%clk 0:14:29]} 31. Ne5
{[%clk 0:37:12]} 31... Rxb1 {[%clk 0:11:11]} 32. Qxb1 {[%clk 0:37:40]} 32... Qf6
{[%clk 0:09:57]} 33. Rb8+ {[%clk 0:25:43]} 33... Kh7 {[%clk 0:09:20]} 34. Nxd7
{[%clk 0:22:30]} 34... Rxd7 {[%clk 0:09:41]} 35. Qe4 {[%clk 0:22:16]} 35... Qg5
{[%clk 0:04:46]} 36. Qf3 {[%clk 0:22:20]} 36... Kg7 {[%clk 0:02:31]} 37. Re8
{[%clk 0:20:35]} 37... Rd5 {[%clk 0:01:54]} 38. g4 {[%clk 0:17:53]} 38... c5
{[%clk 0:01:26]} 39. Qe4 {[%clk 0:06:23]} 39... cxd4 {[%clk 0:01:28]} 40. exd4
{[%clk 0:36:49]} 40... Qh4+ {[%clk 0:30:40]} 41. Kg1 {[%clk 0:37:18]} 41... Ra5
{[%clk 0:26:23]} 42. Qe1 {[%clk 0:36:58]} 42... Rb5 {[%clk 0:25:28]} 43. Re5
{[%clk 0:28:13]} 43... Rb2 {[%clk 0:24:19]} 44. Re4 {[%clk 0:27:58]} 44... h5
{[%clk 0:19:22]} 45. g3 {[%clk 0:27:37]} 45... Qg5 {[%clk 0:18:37]} 46. gxh5
{[%clk 0:26:21]} 46... Qxh5 {[%clk 0:19:03]} 47. d5 {[%clk 0:25:49]} 47... Qf5
{[%clk 0:15:58]} 48. d6 {[%clk 0:23:15]} 48... Rb6 {[%clk 0:13:56]} 49. Rd4
{[%clk 0:20:00]} 49... Qf6 {[%clk 0:10:30]} 50. Qd2 {[%clk 0:17:15]} 50... Qf3
{[%clk 0:09:45]} 51. Qc1 {[%clk 0:16:52]} 51... Rb8 {[%clk 0:05:20]} 52. d7
{[%clk 0:17:10]} 52... Rh8 {[%clk 0:03:56]} 53. Rh4 {[%clk 0:16:04]} 53... Rxh4
{[%clk 0:04:19]} 54. Qb2+ {[%clk 0:15:53]} 54... Kh7 {[%clk 0:03:51]} 55. Qh8+
{[%clk 0:15:34]} 55... Kxh8 {[%clk 0:04:17]} 56. d8=Q+ {[%clk 0:15:29]} 56...
Kg7 {[%clk 0:04:42]} 57. Qxh4 {[%clk 0:16:24]} 1/2-1/2

[Variant "Standard"]
[Site "Europe Echecs"]